[Event "Titled Tuesday Blitz March 15 Early 2022"]
[White "Eggleston, Thomas A"]
[Black "Andreikin, Dmitry"]
[WhiteFideId "412139"]
[BlackFideId "4158814"]
[WhiteElo "2174"]
[BlackElo "2736"]
[Result "0-1"]
[Round "03"]
[TimeControl "180+1"]
[Date "2022.03.15"]
[WhiteClock "0:00:22"]
[BlackClock "0:01:54"]

1. e4 {[%clk 0:03:00]}  c5 {[%clk 0:02:59]} 2. Nf3 {[%clk 0:02:59]}  e6 {[%clk 0:02:59]} 3. c3 {[%clk 0:02:59]}  Nf6 {[%clk 0:02:57]} 4. e5 {[%clk 0:02:57]}  Nd5 {[%clk 0:02:58]} 5. d4 {[%clk 0:02:57]}  cxd4 {[%clk 0:02:57]} 6. cxd4 {[%clk 0:02:56]}  Nc6 {[%clk 0:02:57]} 7. Nc3 {[%clk 0:02:52]}  Nxc3 {[%clk 0:02:56]} 8. bxc3 {[%clk 0:02:52]}  d6 {[%clk 0:02:57]} 9. exd6 {[%clk 0:02:49]}  Bxd6 {[%clk 0:02:58]} 10. Bd3 {[%clk 0:02:49]}  O-O {[%clk 0:02:57]} 11. O-O {[%clk 0:02:45]}  h6 {[%clk 0:02:54]} 12. Re1 {[%clk 0:02:43]}  b6 {[%clk 0:02:53]} 13. Qe2 {[%clk 0:02:37]}  Qc7 {[%clk 0:02:43]} 14. Ne5 {[%clk 0:02:29]}  Bb7 {[%clk 0:02:34]} 15. Bf4 {[%clk 0:02:10]}  Bxe5 {[%clk 0:02:32]} 16. dxe5 {[%clk 0:02:03]}  Ne7 {[%clk 0:02:32]} 17. Qg4 {[%clk 0:01:53]}  Kh8 {[%clk 0:02:26]} 18. Qh4 {[%clk 0:01:42]}  Ng6 {[%clk 0:02:25]} 19. Bxg6 {[%clk 0:01:31]}  fxg6 {[%clk 0:02:26]} 20. Re3 {[%clk 0:01:25]}  Rf5 {[%clk 0:02:18]} 21. Bg3 {[%clk 0:01:07]}  Rd8 {[%clk 0:02:14]} 22. Qg4 {[%clk 0:00:59]}  g5 {[%clk 0:02:08]} 23. h4 {[%clk 0:00:54]}  Qf7 {[%clk 0:02:04]} 24. hxg5 {[%clk 0:00:52]}  Rxg5 {[%clk 0:02:05]} 25. Qh4 {[%clk 0:00:46]}  Rd2 {[%clk 0:02:04]} 26. a3 {[%clk 0:00:33]}  Qf5 {[%clk 0:01:59]} 27. Rae1 {[%clk 0:00:22]}  Rxf2 {[%clk 0:01:54]} 0-1


[Site "https://www.chess.com"]

[Event "Titled Tuesday Blitz March 15 Early 2022"]
[White "Fathy, Elameir"]
[Black "Nikulina, Alena"]
[WhiteFideId "10600396"]
[BlackFideId "4172051"]
[WhiteElo "2311"]
[BlackElo "1778"]
[Result "1-0"]
[Round "03"]
[TimeControl "180+1"]
[Date "2022.03.15"]
[WhiteClock "0:01:36"]
[BlackClock "0:00:12"]

1. d4 {[%clk 0:02:59]}  d5 {[%clk 0:02:57]} 2. c4 {[%clk 0:02:59]}  e6 {[%clk 0:02:54]} 3. Nf3 {[%clk 0:02:59]}  Nf6 {[%clk 0:02:53]} 4. g3 {[%clk 0:02:59]}  c6 {[%clk 0:02:48]} 5. Bg2 {[%clk 0:02:59]}  Be7 {[%clk 0:02:45]} 6. O-O {[%clk 0:03:00]}  O-O {[%clk 0:02:44]} 7. Nbd2 {[%clk 0:03:00]}  a6 {[%clk 0:02:42]} 8. Qc2 {[%clk 0:03:00]}  Nbd7 {[%clk 0:02:39]} 9. e4 {[%clk 0:02:59]}  dxe4 {[%clk 0:02:38]} 10. Nxe4 {[%clk 0:03:00]}  Nxe4 {[%clk 0:02:38]} 11. Qxe4 {[%clk 0:03:01]}  Nf6 {[%clk 0:02:38]} 12. Qe2 {[%clk 0:03:01]}  c5 {[%clk 0:02:28]} 13. Rd1 {[%clk 0:02:58]}  cxd4 {[%clk 0:02:22]} 14. Nxd4 {[%clk 0:02:59]}  Qa5 {[%clk 0:02:22]} 15. Bd2 {[%clk 0:02:57]}  Qh5 {[%clk 0:02:21]} 16. Bf3 {[%clk 0:02:56]}  Qg6 {[%clk 0:02:16]} 17. h4 {[%clk 0:02:54]}  h5 {[%clk 0:02:09]} 18. Bg5 {[%clk 0:02:54]}  Re8 {[%clk 0:01:56]} 19. Rac1 {[%clk 0:02:39]}  Rb8 {[%clk 0:01:22]} 20. Bf4 {[%clk 0:02:34]}  e5 {[%clk 0:01:19]} 21. Qxe5 {[%clk 0:02:23]}  Bg4 {[%clk 0:01:14]} 22. Qg5 {[%clk 0:02:20]}  Rbd8 {[%clk 0:01:06]} 23. Qxg6 {[%clk 0:02:19]}  fxg6 {[%clk 0:01:02]} 24. Bxg4 {[%clk 0:02:04]}  Nxg4 {[%clk 0:01:02]} 25. f3 {[%clk 0:02:03]}  Bc5 {[%clk 0:00:49]} 26. fxg4 {[%clk 0:01:59]}  Rxd4 {[%clk 0:00:47]} 27. Kg2 {[%clk 0:01:51]}  Re2+ {[%clk 0:00:41]} 28. Kf3 {[%clk 0:01:49]}  Rxb2 {[%clk 0:00:41]} 29. Rxd4 {[%clk 0:01:49]}  Bxd4 {[%clk 0:00:41]} 30. Rd1 {[%clk 0:01:48]}  Bf6 {[%clk 0:00:36]} 31. g5 {[%clk 0:01:48]}  Bc3 {[%clk 0:00:32]} 32. Rd3 {[%clk 0:01:46]}  Be1 {[%clk 0:00:32]} 33. Rd8+ {[%clk 0:01:44]}  Kf7 {[%clk 0:00:31]} 34. Rd7+ {[%clk 0:01:45]}  Ke6 {[%clk 0:00:26]} 35. Rxg7 {[%clk 0:01:44]}  Kf5 {[%clk 0:00:20]} 36. Rf7+ {[%clk 0:01:41]}  Ke6 {[%clk 0:00:20]} 37. Rf6+ {[%clk 0:01:41]}  Ke7 {[%clk 0:00:21]} 38. Rxg6 {[%clk 0:01:41]}  Rf2+ {[%clk 0:00:20]} 39. Ke4 {[%clk 0:01:42]}  Rxa2 {[%clk 0:00:21]} 40. Rb6 {[%clk 0:01:38]}  Ra3 {[%clk 0:00:18]} 41. Rxb7+ {[%clk 0:01:37]}  Kf8 {[%clk 0:00:18]} 42. Kf5 {[%clk 0:01:37]}  Bxg3 {[%clk 0:00:17]} 43. Kf6 {[%clk 0:01:33]}  Ke8 {[%clk 0:00:13]} 44. Rb8+ {[%clk 0:01:30]}  Kd7 {[%clk 0:00:13]} 45. Bxg3 {[%clk 0:01:31]}  Rxg3 {[%clk 0:00:13]} 46. g6 {[%clk 0:01:32]}  Rf3+ {[%clk 0:00:12]} 47. Kg5 {[%clk 0:01:32]}  Rg3+ {[%clk 0:00:13]} 48. Kh6 {[%clk 0:01:33]}  a5 {[%clk 0:00:13]} 49. g7 {[%clk 0:01:32]}  a4 {[%clk 0:00:13]} 50. g8=Q {[%clk 0:01:33]}  Rxg8 {[%clk 0:00:12]} 51. Rxg8 {[%clk 0:01:34]}  a3 {[%clk 0:00:11]} 52. Ra8 {[%clk 0:01:34]}  Kc6 {[%clk 0:00:12]} 53. Rxa3 {[%clk 0:01:35]}  Kc5 {[%clk 0:00:12]} 54. Rg3 {[%clk 0:01:36]}  Kxc4 {[%clk 0:00:12]} 55. Kxh5 {[%clk 0:01:36]} 1-0


[Site "https://www.chess.com"]

[Event "Titled Tuesday Blitz March 15 Early 2022"]
[White "Goriatchkin, Jouri"]
[Black "Riehle, Marco"]
[WhiteFideId "4120183"]
[BlackFideId "12904392"]
[WhiteElo "966"]
[BlackElo "2462"]
[Result "0-1"]
[Round "03"]
[TimeControl "180+1"]
[Date "2022.03.15"]
[WhiteClock "0:01:11"]
[BlackClock "0:02:42"]

1. d4 {[%clk 0:03:00]}  d5 {[%clk 0:02:55]} 2. c4 {[%clk 0:03:00]}  e6 {[%clk 0:02:55]} 3. Nc3 {[%clk 0:02:59]}  c5 {[%clk 0:02:55]} 4. cxd5 {[%clk 0:02:55]}  cxd4 {[%clk 0:02:49]} 5. Qxd4 {[%clk 0:02:47]}  Nc6 {[%clk 0:02:43]} 6. Qd1 {[%clk 0:02:39]}  exd5 {[%clk 0:02:44]} 7. Qxd5 {[%clk 0:01:42]}  Be6 {[%clk 0:02:43]} 8. Qxd8+ {[%clk 0:01:41]}  Rxd8 {[%clk 0:02:44]} 9. Bf4 {[%clk 0:01:25]}  Nb4 {[%clk 0:02:43]} 10. Rc1 {[%clk 0:01:19]}  Nxa2 {[%clk 0:02:43]} 11. e3 {[%clk 0:01:11]}  Nxc1 {[%clk 0:02:42]} 0-1


[Site "https://www.chess.com"]

[Event "Titled Tuesday Blitz March 15 Early 2022"]
[White "Goryachkina, Aleksandra"]
[Black "Guseva, Marina"]
[WhiteFideId "4147103"]
[BlackFideId "4149351"]
[WhiteElo "2426"]
[BlackElo "2160"]
[Result "1/2-1/2"]
[Round "03"]
[TimeControl "180+1"]
[Date "2022.03.15"]
[WhiteClock "0:00:04"]
[BlackClock "0:00:04"]

1. e4 {[%clk 0:02:59]}  c5 {[%clk 0:02:58]} 2. Nf3 {[%clk 0:02:59]}  Nc6 {[%clk 0:02:56]} 3. Bb5 {[%clk 0:02:57]}  d6 {[%clk 0:02:56]} 4. O-O {[%clk 0:02:56]}  Bd7 {[%clk 0:02:54]} 5. Re1 {[%clk 0:02:56]}  Nf6 {[%clk 0:02:51]} 6. c3 {[%clk 0:02:54]}  a6 {[%clk 0:02:50]} 7. Bf1 {[%clk 0:02:54]}  Bg4 {[%clk 0:02:40]} 8. d4 {[%clk 0:02:36]}  cxd4 {[%clk 0:02:36]} 9. cxd4 {[%clk 0:02:36]}  e5 {[%clk 0:02:35]} 10. d5 {[%clk 0:02:34]}  Nd4 {[%clk 0:02:32]} 11. Be3 {[%clk 0:02:33]}  Nxf3+ {[%clk 0:02:30]} 12. gxf3 {[%clk 0:02:33]}  Bd7 {[%clk 0:02:29]} 13. Nd2 {[%clk 0:02:32]}  b5 {[%clk 0:02:28]} 14. Rc1 {[%clk 0:01:56]}  Be7 {[%clk 0:02:23]} 15. Qc2 {[%clk 0:01:55]}  O-O {[%clk 0:02:02]} 16. Qc7 {[%clk 0:01:51]}  Qxc7 {[%clk 0:01:36]} 17. Rxc7 {[%clk 0:01:50]}  Rfc8 {[%clk 0:01:36]} 18. Rec1 {[%clk 0:01:45]}  Rxc7 {[%clk 0:01:17]} 19. Rxc7 {[%clk 0:01:45]}  Bd8 {[%clk 0:01:16]} 20. Rc2 {[%clk 0:01:36]}  Rc8 {[%clk 0:01:07]} 21. Rxc8 {[%clk 0:01:18]}  Bxc8 {[%clk 0:01:07]} 22. Nb3 {[%clk 0:01:04]}  Nh5 {[%clk 0:01:02]} 23. Bd3 {[%clk 0:00:36]}  g5 {[%clk 0:00:56]} 24. Bd2 {[%clk 0:00:29]}  Nf4 {[%clk 0:00:54]} 25. Bxf4 {[%clk 0:00:22]}  gxf4 {[%clk 0:00:49]} 26. Kg2 {[%clk 0:00:18]}  Bb6 {[%clk 0:00:48]} 27. Nc1 {[%clk 0:00:13]}  Bd7 {[%clk 0:00:27]} 28. Ne2 {[%clk 0:00:12]}  Kf8 {[%clk 0:00:23]} 29. Kf1 {[%clk 0:00:12]}  Ke7 {[%clk 0:00:21]} 30. Ke1 {[%clk 0:00:12]}  Kd8 {[%clk 0:00:20]} 31. Ng1 {[%clk 0:00:11]}  Kc7 {[%clk 0:00:19]} 32. Bf1 {[%clk 0:00:10]}  Bd4 {[%clk 0:00:18]} 33. b3 {[%clk 0:00:10]}  Kb6 {[%clk 0:00:18]} 34. Bh3 {[%clk 0:00:09]}  Be8 {[%clk 0:00:16]} 35. Ne2 {[%clk 0:00:08]}  Kc5 {[%clk 0:00:15]} 36. Kd2 {[%clk 0:00:08]}  Bxf2 {[%clk 0:00:14]} 37. Bf5 {[%clk 0:00:06]}  h6 {[%clk 0:00:14]} 38. Kd3 {[%clk 0:00:06]}  b4 {[%clk 0:00:12]} 39. Kc2 {[%clk 0:00:06]}  Bb5 {[%clk 0:00:11]} 40. Kd2 {[%clk 0:00:03]}  Be3+ {[%clk 0:00:11]} 41. Kd1 {[%clk 0:00:04]}  Bxe2+ {[%clk 0:00:10]} 42. Kxe2 {[%clk 0:00:04]}  Kd4 {[%clk 0:00:10]} 43. h3 {[%clk 0:00:03]}  Kc3 {[%clk 0:00:10]} 44. Bd7 {[%clk 0:00:03]}  Kb2 {[%clk 0:00:09]} 45. Kd3 {[%clk 0:00:03]}  Kxa2 {[%clk 0:00:07]} 46. Kc2 {[%clk 0:00:04]}  a5 {[%clk 0:00:06]} 47. Bc6 {[%clk 0:00:03]}  f6 {[%clk 0:00:06]} 48. Bd7 {[%clk 0:00:03]}  Ka3 {[%clk 0:00:05]} 49. Bc6 {[%clk 0:00:03]}  Bd4 {[%clk 0:00:05]} 50. Bd7 {[%clk 0:00:03]}  Be3 {[%clk 0:00:04]} 51. Bc6 {[%clk 0:00:03]}  Bd4 {[%clk 0:00:04]} 52. Bd7 {[%clk 0:00:04]}  Be3 {[%clk 0:00:04]} 1/2-1/2


[Site "https://www.chess.com"]

[Event "Titled Tuesday Blitz March 15 Early 2022"]
[White "Griggs, Walker"]
[Black "Weetik, Vjacheslav"]
[WhiteFideId "2067552"]
[BlackFideId "4153472"]
[WhiteElo "2232"]
[BlackElo "2469"]
[Result "0-1"]
[Round "03"]
[TimeControl "180+1"]
[Date "2022.03.15"]
[WhiteClock "0:01:55"]
[BlackClock "0:02:13"]

1. e4 {[%clk 0:02:50]}  c6 {[%clk 0:02:54]} 2. d4 {[%clk 0:02:48]}  d5 {[%clk 0:02:54]} 3. Nd2 {[%clk 0:02:48]}  dxe4 {[%clk 0:02:54]} 4. Nxe4 {[%clk 0:02:48]}  Nf6 {[%clk 0:02:52]} 5. Nxf6+ {[%clk 0:02:48]}  exf6 {[%clk 0:02:53]} 6. c3 {[%clk 0:02:41]}  Bd6 {[%clk 0:02:52]} 7. Bd3 {[%clk 0:02:40]}  O-O {[%clk 0:02:53]} 8. Qf3 {[%clk 0:02:38]}  Re8+ {[%clk 0:02:52]} 9. Ne2 {[%clk 0:02:38]}  Nd7 {[%clk 0:02:52]} 10. O-O {[%clk 0:02:33]}  Nf8 {[%clk 0:02:53]} 11. Bf4 {[%clk 0:02:33]}  Ng6 {[%clk 0:02:51]} 12. Bxd6 {[%clk 0:02:33]}  Qxd6 {[%clk 0:02:52]} 13. Rfe1 {[%clk 0:02:32]}  Be6 {[%clk 0:02:50]} 14. Qg3 {[%clk 0:02:29]}  Qd8 {[%clk 0:02:42]} 15. Nf4 {[%clk 0:02:28]}  Nxf4 {[%clk 0:02:39]} 16. Qxf4 {[%clk 0:02:29]}  Qb6 {[%clk 0:02:35]} 17. b3 {[%clk 0:02:26]}  Qa5 {[%clk 0:02:27]} 18. Re3 {[%clk 0:02:21]}  Qg5 {[%clk 0:02:24]} 19. Qxg5 {[%clk 0:02:16]}  fxg5 {[%clk 0:02:25]} 20. Rae1 {[%clk 0:02:17]}  Red8 {[%clk 0:02:25]} 21. Re5 {[%clk 0:02:15]}  h6 {[%clk 0:02:24]} 22. Bf5 {[%clk 0:02:13]}  Bxf5 {[%clk 0:02:22]} 23. Rxf5 {[%clk 0:02:14]}  Re8 {[%clk 0:02:22]} 24. Rxe8+ {[%clk 0:02:13]}  Rxe8 {[%clk 0:02:22]} 25. Kf1 {[%clk 0:02:14]}  Kf8 {[%clk 0:02:18]} 26. c4 {[%clk 0:02:00]}  Re4 {[%clk 0:02:15]} 27. d5 {[%clk 0:01:59]}  c5 {[%clk 0:02:12]} 28. d6 {[%clk 0:01:57]}  b6 {[%clk 0:02:13]} 29. Rd5 {[%clk 0:01:58]}  Ke8 {[%clk 0:02:13]} 30. d7+ {[%clk 0:01:55]}  Kd8 {[%clk 0:02:13]} 0-1


[Site "https://www.chess.com"]

[Event "Titled Tuesday Blitz March 15 Early 2022"]
[White "Gulecyuz, Deniz"]
[Black "Farmani Anosheh, Armin"]
[WhiteFideId "30921341"]
[BlackFideId "24613240"]
[WhiteElo "1923"]
[BlackElo "2289"]
[Result "0-1"]
[Round "03"]
[TimeControl "180+1"]
[Date "2022.03.15"]
[WhiteClock "0:00:04"]
[BlackClock "0:00:08"]

1. Nf3 {[%clk 0:02:57]}  c5 {[%clk 0:03:00]} 2. g3 {[%clk 0:02:57]}  d5 {[%clk 0:03:00]} 3. Bg2 {[%clk 0:02:57]}  Nf6 {[%clk 0:03:00]} 4. O-O {[%clk 0:02:56]}  e6 {[%clk 0:03:00]} 5. c4 {[%clk 0:02:55]}  d4 {[%clk 0:03:00]} 6. d3 {[%clk 0:02:53]}  Nc6 {[%clk 0:02:59]} 7. Na3 {[%clk 0:02:44]}  Be7 {[%clk 0:02:58]} 8. Nc2 {[%clk 0:02:44]}  O-O {[%clk 0:02:57]} 9. a3 {[%clk 0:02:45]}  a5 {[%clk 0:02:57]} 10. Rb1 {[%clk 0:02:45]}  a4 {[%clk 0:02:58]} 11. b4 {[%clk 0:02:39]}  axb3 {[%clk 0:02:58]} 12. Rxb3 {[%clk 0:02:39]}  Nd7 {[%clk 0:02:41]} 13. e3 {[%clk 0:02:27]}  e5 {[%clk 0:02:40]} 14. Re1 {[%clk 0:02:17]}  dxe3 {[%clk 0:02:27]} 15. fxe3 {[%clk 0:01:41]}  Qc7 {[%clk 0:01:57]} 16. Bb2 {[%clk 0:00:57]}  b6 {[%clk 0:01:44]} 17. Bc3 {[%clk 0:00:53]}  Bb7 {[%clk 0:01:41]} 18. Qa1 {[%clk 0:00:52]}  Rfe8 {[%clk 0:01:34]} 19. Nd2 {[%clk 0:00:46]}  Bf8 {[%clk 0:01:27]} 20. Rf1 {[%clk 0:00:44]}  Nf6 {[%clk 0:00:57]} 21. Ne4 {[%clk 0:00:34]}  Nxe4 {[%clk 0:00:50]} 22. Bxe4 {[%clk 0:00:34]}  Na5 {[%clk 0:00:43]} 23. Bxa5 {[%clk 0:00:23]}  Rxa5 {[%clk 0:00:43]} 24. Bxb7 {[%clk 0:00:23]}  Qxb7 {[%clk 0:00:44]} 25. e4 {[%clk 0:00:21]}  Rea8 {[%clk 0:00:16]} 26. Qxe5 {[%clk 0:00:18]}  Qd7 {[%clk 0:00:14]} 27. Qb2 {[%clk 0:00:14]}  f6 {[%clk 0:00:14]} 28. Ne3 {[%clk 0:00:14]}  Bd6 {[%clk 0:00:13]} 29. Nd5 {[%clk 0:00:12]}  Be5 {[%clk 0:00:14]} 30. Qc2 {[%clk 0:00:06]}  Bd4+ {[%clk 0:00:14]} 31. Kg2 {[%clk 0:00:06]}  R8a6 {[%clk 0:00:12]} 32. Rxb6 {[%clk 0:00:05]}  Rxa3 {[%clk 0:00:12]} 33. Rxa6 {[%clk 0:00:05]}  Rxa6 {[%clk 0:00:12]} 34. Rb1 {[%clk 0:00:06]}  Ra8 {[%clk 0:00:12]} 35. Qb3 {[%clk 0:00:04]}  h5 {[%clk 0:00:12]} 36. Qb7 {[%clk 0:00:04]}  Qxb7 {[%clk 0:00:12]} 37. Rxb7 {[%clk 0:00:04]}  Ra2+ {[%clk 0:00:13]} 38. Kh3 {[%clk 0:00:04]}  Rd2 {[%clk 0:00:12]} 39. Nf4 {[%clk 0:00:03]}  h4 {[%clk 0:00:12]} 40. Kxh4 {[%clk 0:00:02]}  Rxh2+ {[%clk 0:00:12]} 41. Kg4 {[%clk 0:00:03]}  Be5 {[%clk 0:00:12]} 42. Kf5 {[%clk 0:00:04]}  Rf2 {[%clk 0:00:12]} 43. Kg6 {[%clk 0:00:04]}  f5 {[%clk 0:00:11]} 44. exf5 {[%clk 0:00:04]}  Rf3 {[%clk 0:00:11]} 45. Ne6 {[%clk 0:00:03]}  Rxg3+ {[%clk 0:00:11]} 46. Kh5 {[%clk 0:00:03]}  Kh7 {[%clk 0:00:10]} 47. Ng5+ {[%clk 0:00:01]}  Kg8 {[%clk 0:00:09]} 48. Kh4 {[%clk 0:00:02]}  Rg1 {[%clk 0:00:08]} 49. Kh5 {[%clk 0:00:03]}  Bf6 {[%clk 0:00:08]} 50. Ne4 {[%clk 0:00:03]}  Rh1+ {[%clk 0:00:07]} 51. Kg4 {[%clk 0:00:03]}  Be5 {[%clk 0:00:07]} 52. Kg5 {[%clk 0:00:03]}  Rg1+ {[%clk 0:00:07]} 53. Kh4 {[%clk 0:00:04]}  Rh1+ {[%clk 0:00:08]} 54. Kg4 {[%clk 0:00:04]}  Rg1+ {[%clk 0:00:09]} 55. Kf3 {[%clk 0:00:05]}  Rf1+ {[%clk 0:00:09]} 56. Nf2 {[%clk 0:00:06]}  Bd4 {[%clk 0:00:09]} 57. Ke4 {[%clk 0:00:05]}  Rxf2 {[%clk 0:00:09]} 58. Kd5 {[%clk 0:00:05]}  Rxf5+ {[%clk 0:00:09]} 59. Kc6 {[%clk 0:00:06]}  g6 {[%clk 0:00:09]} 60. Kd6 {[%clk 0:00:04]}  Rf6+ {[%clk 0:00:07]} 61. Ke7 {[%clk 0:00:04]}  Rf7+ {[%clk 0:00:08]} 0-1


[Site "https://www.chess.com"]

[Event "Titled Tuesday Blitz March 15 Early 2022"]
[White "Gurevich, Dmitry"]
[Black "Demchenko, Anton"]
[WhiteFideId "2000407"]
[BlackFideId "4160258"]
[WhiteElo "2506"]
[BlackElo "2539"]
[Result "1/2-1/2"]
[Round "03"]
[TimeControl "180+1"]
[Date "2022.03.15"]
[WhiteClock "0:00:06"]
[BlackClock "0:00:02"]

1. d4 {[%clk 0:03:00]}  Nf6 {[%clk 0:03:00]} 2. c4 {[%clk 0:03:00]}  d6 {[%clk 0:03:00]} 3. Nc3 {[%clk 0:02:59]}  e5 {[%clk 0:03:00]} 4. Nf3 {[%clk 0:02:58]}  Nbd7 {[%clk 0:03:00]} 5. e4 {[%clk 0:02:58]}  Be7 {[%clk 0:03:00]} 6. Be2 {[%clk 0:02:58]}  c6 {[%clk 0:03:01]} 7. O-O {[%clk 0:02:57]}  Qc7 {[%clk 0:03:01]} 8. Be3 {[%clk 0:02:57]}  Nf8 {[%clk 0:03:01]} 9. Rc1 {[%clk 0:02:55]}  Ng6 {[%clk 0:03:01]} 10. Re1 {[%clk 0:02:50]}  O-O {[%clk 0:03:00]} 11. h3 {[%clk 0:02:49]}  Re8 {[%clk 0:02:58]} 12. Qd2 {[%clk 0:02:48]}  h6 {[%clk 0:02:55]} 13. b4 {[%clk 0:02:46]}  Bf8 {[%clk 0:02:37]} 14. d5 {[%clk 0:02:44]}  a5 {[%clk 0:01:54]} 15. a3 {[%clk 0:02:39]}  axb4 {[%clk 0:01:54]} 16. axb4 {[%clk 0:02:40]}  Bd7 {[%clk 0:01:32]} 17. Red1 {[%clk 0:02:37]}  Ra3 {[%clk 0:01:24]} 18. c5 {[%clk 0:02:29]}  Qb8 {[%clk 0:01:21]} 19. cxd6 {[%clk 0:01:54]}  cxd5 {[%clk 0:01:16]} 20. Nb5 {[%clk 0:01:41]}  Bxb5 {[%clk 0:01:04]} 21. Bxb5 {[%clk 0:01:40]}  Rd8 {[%clk 0:01:04]} 22. Qb2 {[%clk 0:01:32]}  Rxe3 {[%clk 0:00:53]} 23. fxe3 {[%clk 0:01:32]}  Bxd6 {[%clk 0:00:51]} 24. exd5 {[%clk 0:01:31]}  Qa7 {[%clk 0:00:43]} 25. Qe2 {[%clk 0:01:15]}  Bxb4 {[%clk 0:00:42]} 26. Kh2 {[%clk 0:01:05]}  Bc5 {[%clk 0:00:39]} 27. Ra1 {[%clk 0:00:58]}  Qb6 {[%clk 0:00:38]} 28. e4 {[%clk 0:00:43]}  Nxe4 {[%clk 0:00:38]} 29. Qxe4 {[%clk 0:00:38]}  Qxb5 {[%clk 0:00:38]} 30. Kh1 {[%clk 0:00:29]}  Bd6 {[%clk 0:00:37]} 31. Rab1 {[%clk 0:00:25]}  Qd7 {[%clk 0:00:37]} 32. Rb3 {[%clk 0:00:23]}  f5 {[%clk 0:00:37]} 33. Qc4 {[%clk 0:00:22]}  Rc8 {[%clk 0:00:21]} 34. Qb5 {[%clk 0:00:22]}  Qxb5 {[%clk 0:00:20]} 35. Rxb5 {[%clk 0:00:21]}  Nf4 {[%clk 0:00:08]} 36. Rxb7 {[%clk 0:00:19]}  Rc2 {[%clk 0:00:08]} 37. Rd7 {[%clk 0:00:17]}  Bf8 {[%clk 0:00:07]} 38. Nxe5 {[%clk 0:00:16]}  Nxg2 {[%clk 0:00:03]} 39. Ng6 {[%clk 0:00:15]}  Bc5 {[%clk 0:00:03]} 40. d6 {[%clk 0:00:11]}  Ne3 {[%clk 0:00:03]} 41. Re1 {[%clk 0:00:09]}  Kh7 {[%clk 0:00:03]} 42. Nf8+ {[%clk 0:00:08]}  Kg8 {[%clk 0:00:04]} 43. Ne6 {[%clk 0:00:08]}  Bb6 {[%clk 0:00:04]} 44. Rxg7+ {[%clk 0:00:08]}  Kh8 {[%clk 0:00:03]} 45. Rb7 {[%clk 0:00:08]}  Nc4 {[%clk 0:00:02]} 46. d7 {[%clk 0:00:07]}  Rd2 {[%clk 0:00:03]} 47. d8=Q+ {[%clk 0:00:06]}  Bxd8 {[%clk 0:00:03]} 48. Rb8 {[%clk 0:00:07]}  Kh7 {[%clk 0:00:03]} 49. Rxd8 {[%clk 0:00:07]}  Rb2 {[%clk 0:00:02]} 50. Rd7+ {[%clk 0:00:07]}  Kg6 {[%clk 0:00:02]} 51. Nf4+ {[%clk 0:00:08]}  Kg5 {[%clk 0:00:02]} 52. Ne6+ {[%clk 0:00:08]}  Kf6 {[%clk 0:00:03]} 53. Nf4 {[%clk 0:00:07]}  Rb3 {[%clk 0:00:02]} 54. Nd5+ {[%clk 0:00:08]}  Kg5 {[%clk 0:00:02]} 55. Rg1+ {[%clk 0:00:07]}  Kh4 {[%clk 0:00:03]} 56. Rd6 {[%clk 0:00:07]}  Rxh3+ {[%clk 0:00:02]} 57. Kg2 {[%clk 0:00:08]}  Rd3 {[%clk 0:00:02]} 58. Kf2 {[%clk 0:00:07]}  Rd2+ {[%clk 0:00:02]} 59. Ke1 {[%clk 0:00:07]}  h5 {[%clk 0:00:02]} 60. Ne3 {[%clk 0:00:06]}  Rxd6 {[%clk 0:00:01]} 61. Nxf5+ {[%clk 0:00:06]}  Kh3 {[%clk 0:00:01]} 62. Nxd6 {[%clk 0:00:06]}  Nxd6 {[%clk 0:00:02]} 63. Rh1+ {[%clk 0:00:06]}  Kg4 {[%clk 0:00:02]} 64. Rxh5 {[%clk 0:00:06]}  Kxh5 {[%clk 0:00:02]} 1/2-1/2


[Site "https://www.chess.com"]